[Event "Croatian junior league 2021"]
[Site "Rabac"]
[Date "2021.04.09"]
[Round "8.21"]
[White "Colev, Ivor"]
[Black "Kovac, Petar"]
[Result "0-1"]
[ECO "C07"]
[WhiteElo "1847"]
[BlackElo "2089"]
[Annotator "NA"]
[PlyCount "64"]
[EventDate "2021.04.06"]
[EventType "swiss"]
[EventCountry "CRO"]
[SourceTitle "playchess.com"]
[Source "ChessBase"]
[SourceQuality "1"]
[TimeControl "5400+30"]

1. e4 {[%emt 0:00:00]} e6 {[%emt 0:00:00]} 2. d4 {[%emt 0:00:00]} d5 {[%emt 0:00:00]} 3. Nd2 {[%emt 0:00:00]} c5 {[%emt 0:00:00]} 4. exd5 {[%emt 0:00:00]} Qxd5 {[%emt 0:00:00]} 5. dxc5 {[%emt 0:00:00]} Qxc5 {[%emt 0:00:03]} 6. Ngf3 {[%emt 0:00:06]} Nf6 {[%emt 0:01:47]} 7. Bd3 {[%emt 0:00:08]} Be7 {[%emt 0:01:05]} 8. Qe2 {[%emt 0:00:11]} Qc7 {[%emt 0:03:07]} 9. O-O {[%emt 0:00:11]} Nbd7 {[%emt 0:02:36]} 10. Ne4 {[%emt 0:05:26]} a6 {[%emt 0:03:49]} 11. Be3 {[%emt 0:09:30]} O-O {[%emt 0:04:13]} 12. c3 {[%emt 0:01:33]} e5 {[%emt 0:10:01]} 13. Bg5 {[%emt 0:05:42]} Re8 {[%emt 0:09:29]} 14. Rfe1 {[%emt 0:04:30]} g6 {[%emt 0:19:49]} 15. Rad1 {[%emt 0:06:44]} Nxe4 {[%emt 0:09:42]} 16. Bxe4 {[%emt 0:00:25]} Bxg5 {[%emt 0:00:53]} 17. Nxg5 {[%emt 0:00:09]} Nf6 {[%emt 0:00:07]} 18. h3 {[%emt 0:07:08]} Kg7 {[%emt 0:02:49]} 19. Bc2 {[%emt 0:17:55]} e4 {[%emt 0:08:12]} 20. Bb3 {[%emt 0:03:25]} Re7 {[%emt 0:01:47]} 21. Rd4 {[%emt 0:07:54]} Bf5 {[%emt 0:02:00]} 22. Rc4 {[%emt 0:10:06]} Qf4 {[%emt 0:02:04]} 23. h4 {[%emt 0:06:50]} Qxh4 {[%emt 0:01:20]} 24. Nf3 {[%emt 0:00:10]} Qh5 {[%emt 0:00:39]} 25. Nd2 {[%emt 0:03:34]} Ng4 {[%emt 0:02:59]} 26. Nf1 {[%emt 0:00:50]} Rae8 {[%emt 0:01:28]} 27. Rd4 {[%emt 0:04:23]} Qh4 {[%emt 0:02:13]} 28. g3 {[%emt 0:02:38]} Qh3 {[%emt 0:01:05]} 29. Bd5 {[%emt 0:01:16]} Nf6 {[%emt 0:01:45]} 30. Qe3 {[%emt 0:00:58]} Bg4 {[%emt 0:01:26]} 31. Rxe4 {[%emt 0:02:34]} Rxe4 {[%emt 0:02:00]} 32. Bxe4 {[%emt 0:00:14]} Rxe4 {[%emt 0:00:05]} 0-1

[Event "Croatian junior league 2021"]
[Site "Rabac"]
[Date "2021.04.09"]
[Round "8.22"]
[White "Stjepic, Borna"]
[Black "Perko, Bartol"]
[Result "1/2-1/2"]
[ECO "B18"]
[WhiteElo "1825"]
[BlackElo "1766"]
[Annotator "NA"]
[PlyCount "135"]
[EventDate "2021.04.06"]
[EventType "swiss"]
[EventCountry "CRO"]
[SourceTitle "playchess.com"]
[Source "ChessBase"]
[SourceQuality "1"]
[TimeControl "5400+30"]

1. e4 {[%emt 0:00:00]} d5 {[%emt 0:00:00]} 2. exd5 {[%emt 0:00:00]} Qxd5 {[%emt 0:00:00]} 3. Nc3 {[%emt 0:00:00]} Qd8 {[%emt 0:00:00]} 4. Nf3 {[%emt 0:00:09]} Nf6 {[%emt 0:00:00]} 5. d4 {[%emt 0:00:58]} Bf5 {[%emt 0:00:10]} 6. Bc4 {[%emt 0:01:41]} e6 {[%emt 0:00:12]} 7. O-O {[%emt 0:01:56]} Be7 {[%emt 0:00:10]} 8. Bf4 {[%emt 0:03:09]} c6 {[%emt 0:00:23]} 9. Ne2 {[%emt 0:01:58]} Nbd7 {[%emt 0:01:29]} 10. Ng3 {[%emt 0:01:58]} Bg6 {[%emt 0:00:28]} 11. c3 {[%emt 0:02:46]} O-O {[%emt 0:00:24]} 12. a4 {[%emt 0:02:12]} Nb6 {[%emt 0:02:23]} 13. Be2 {[%emt 0:01:42]} Nbd5 {[%emt 0:00:22]} 14. Bg5 {[%emt 0:02:27]} Qc7 {[%emt 0:04:27]} 15. Ne5 {[%emt 0:03:58]} Rad8 {[%emt 0:05:08]} 16. Qb3 {[%emt 0:05:03]} a5 {[%emt 0:03:46]} 17. Bf3 {[%emt 0:04:04]} Rfe8 {[%emt 0:05:02]} 18. Rfe1 {[%emt 0:03:14]} Nd7 {[%emt 0:06:39]} 19. Bxe7 {[%emt 0:03:57]} Nxe7 {[%emt 0:01:15]} 20. Nc4 {[%emt 0:04:07]} Nd5 {[%emt 0:02:31]} 21. Ne4 {[%emt 0:04:25]} Bxe4 {[%emt 0:04:24]} 22. Bxe4 {[%emt 0:00:02]} N7f6 {[%emt 0:00:24]} 23. Bf3 {[%emt 0:00:54]} g6 {[%emt 0:02:18]} 24. Ne5 {[%emt 0:01:14]} Kg7 {[%emt 0:02:41]} 25. g3 {[%emt 0:01:23]} h5 {[%emt 0:01:45]} 26. h4 {[%emt 0:02:56]} Rh8 {[%emt 0:10:16]} 27. Kg2 {[%emt 0:02:07]} Rde8 {[%emt 0:07:18]} 28. Nd3 {[%emt 0:01:10]} b6 {[%emt 0:02:39]} 29. Qc4 {[%emt 0:02:35]} Rc8 {[%emt 0:01:27]} 30. Ne5 {[%emt 0:01:06]} Rhe8 {[%emt 0:02:12]} 31. Qe2 {[%emt 0:03:29]} Rh8 {[%emt 0:02:20]} 32. Rac1 {[%emt 0:03:27]} Rhe8 {[%emt 0:03:58]} 33. Rc2 {[%emt 0:02:33]} c5 {[%emt 0:02:38]} 34. Rd2 {[%emt 0:00:41]} Rcd8 {[%emt 0:02:01]} 35. Red1 {[%emt 0:00:55]} cxd4 {[%emt 0:02:13]} 36. Rxd4 {[%emt 0:00:17]} Ne7 {[%emt 0:00:28]} 37. Rc4 {[%emt 0:04:36]} Qb8 {[%emt 0:01:26]} 38. Nc6 {[%emt 0:01:01]} Nxc6 {[%emt 0:00:15]} 39. Rxc6 {[%emt 0:00:01]} Rxd1 {[%emt 0:01:14]} 40. Qxd1 {[%emt 0:00:01]} Rd8 {[%emt 0:00:01]} 41. Qb3 {[%emt 0:00:54]} Rd6 {[%emt 0:02:01]} 42. Qb5 {[%emt 0:00:53]} Rxc6 {[%emt 0:02:43]} 43. Bxc6 {[%emt 0:00:08]} Qc7 {[%emt 0:00:49]} 44. b4 {[%emt 0:01:11]} Ng8 {[%emt 0:00:56]} 45. bxa5 {[%emt 0:00:47]} bxa5 {[%emt 0:00:03]} 46. c4 {[%emt 0:00:22]} Ne7 {[%emt 0:00:11]} 47. Be4 {[%emt 0:01:41]} f5 {[%emt 0:02:12]} 48. Bf3 {[%emt 0:01:49]} e5 {[%emt 0:00:39]} 49. Bd5 {[%emt 0:00:01]} f4 {[%emt 0:01:40]} 50. Be4 {[%emt 0:02:07]} fxg3 {[%emt 0:02:30]} 51. fxg3 {[%emt 0:00:11]} Qd6 {[%emt 0:02:49]} 52. Qxa5 {[%emt 0:02:29]} Qd4 {[%emt 0:00:23]} 53. Bd5 {[%emt 0:00:48]} Qe3 {[%emt 0:01:00]} 54. Qc7 {[%emt 0:03:33]} Qe2+ {[%emt 0:02:15]} 55. Kh3 {[%emt 0:00:01]} Qf1+ {[%emt 0:01:12]} 56. Bg2 {[%emt 0:00:02]} Qf5+ {[%emt 0:00:01]} 57. Kh2 {[%emt 0:00:16]} Qe6 {[%emt 0:02:14]} 58. a5 {[%emt 0:00:34]} e4 {[%emt 0:01:59]} 59. Qb6 {[%emt 0:01:22]} Qe5 {[%emt 0:02:45]} 60. Qe3 {[%emt 0:00:01]} Nf5 {[%emt 0:01:06]} 61. Qf4 {[%emt 0:01:27]} Qxa5 {[%emt 0:00:59]} 62. Qxe4 {[%emt 0:00:15]} Qc3 {[%emt 0:00:46]} 63. Qf4 {[%emt 0:00:47]} Ne3 {[%emt 0:01:12]} 64. Qc7+ {[%emt 0:01:48]} Kh6 {[%emt 0:00:31]} 65. Qf4+ {[%emt 0:02:40]} Kg7 {[%emt 0:00:00]} 66. Be4 {[%emt 0:02:13]} Ng4+ {[%emt 0:02:21]} 67. Kh3 {[%emt 0:00:02]} Qxc4 {[%emt 0:00:16]} 68. Bg2 {[%emt 0:00:19]} 1/2-1/2

[Event "Croatian junior league 2021"]
[Site "Rabac"]
[Date "2021.04.09"]
[Round "8.23"]
[White "Poljan, Max"]
[Black "Vukojevic, Toni"]
[Result "1/2-1/2"]
[ECO "A23"]
[WhiteElo "1573"]
[BlackElo "1538"]
[Annotator "NA"]
[PlyCount "76"]
[EventDate "2021.04.06"]
[EventType "swiss"]
[EventCountry "CRO"]
[SourceTitle "playchess.com"]
[Source "ChessBase"]
[SourceQuality "1"]
[TimeControl "5400+30"]

1. c4 {[%emt 0:00:00]} e5 {[%emt 0:00:00]} 2. g3 {[%emt 0:00:00]} Nf6 {[%emt 0:00:21]} 3. Bg2 {[%emt 0:00:00]} c6 {[%emt 0:00:14]} 4. Nc3 {[%emt 0:00:42]} d5 {[%emt 0:00:49]} 5. cxd5 {[%emt 0:00:06]} cxd5 {[%emt 0:00:04]} 6. d4 {[%emt 0:00:07]} exd4 7. Qxd4 {[%emt 0:00:07]} Nc6 {[%emt 0:00:43]} 8. Qa4 {[%emt 0:00:38]} Bb4 {[%emt 0:01:32]} 9. a3 {[%emt 0:03:40]} Bxc3+ {[%emt 0:00:11]} 10. bxc3 {[%emt 0:00:00]} Qa5 {[%emt 0:00:30]} 11. Qxa5 {[%emt 0:02:21]} Nxa5 {[%emt 0:00:05]} 12. Bg5 {[%emt 0:00:36]} Be6 {[%emt 0:00:24]} 13. Bxf6 {[%emt 0:03:39]} gxf6 {[%emt 0:00:06]} 14. e3 {[%emt 0:00:42]} Rc8 {[%emt 0:00:22]} 15. Ne2 {[%emt 0:00:14]} Nc4 {[%emt 0:01:23]} 16. O-O {[%emt 0:04:51]} O-O {[%emt 0:01:29]} 17. h3 {[%emt 0:03:57]} Rc5 {[%emt 0:00:19]} 18. Rfd1 {[%emt 0:10:53]} Ra5 {[%emt 0:00:54]} 19. Nf4 {[%emt 0:01:24]} Nb6 {[%emt 0:01:47]} 20. g4 {[%emt 0:22:46]} Rc8 {[%emt 0:02:02]} 21. Rd3 {[%emt 0:01:14]} Rcc5 {[%emt 0:02:17]} 22. e4 {[%emt 0:16:06]} Kg7 {[%emt 0:05:57]} 23. Rad1 {[%emt 0:09:55]} dxe4 {[%emt 0:05:02]} 24. Bxe4 {[%emt 0:01:21]} f5 {[%emt 0:00:11]} 25. Nxe6+ {[%emt 0:03:41]} fxe6 {[%emt 0:00:15]} 26. gxf5 {[%emt 0:01:20]} exf5 {[%emt 0:00:05]} 27. Bxb7 {[%emt 0:00:12]} Rxa3 {[%emt 0:01:01]} 28. Rc1 {[%emt 0:05:32]} Rc7 {[%emt 0:02:20]} 29. Bg2 {[%emt 0:00:00]} Na4 {[%emt 0:02:24]} 30. Rg3+ {[%emt 0:00:00]} Kf6 {[%emt 0:00:16]} 31. c4 {[%emt 0:00:00]} Rxg3 {[%emt 0:00:25]} 32. fxg3 {[%emt 0:00:00]} Nb2 {[%emt 0:00:15]} 33. Rc2 {[%emt 0:00:49]} Nd1 {[%emt 0:01:45]} 34. Rc1 {[%emt 0:01:39]} Ne3 {[%emt 0:00:14]} 35. c5 {[%emt 0:02:21]} Nxg2 {[%emt 0:00:28]} 36. Kxg2 {[%emt 0:00:07]} Ke5 {[%emt 0:00:06]} 37. Ra1 {[%emt 0:01:00]} Kd5 {[%emt 0:00:06]} 38. Ra5 {[%emt 0:00:08]} Ke4 {[%emt 0:05:53]} 1/2-1/2

[Event "Croatian junior league 2021"]
[Site "Rabac"]
[Date "2021.04.10"]
[Round "9.5"]
[White "Begic, Domagoj"]
[Black "Bunic, Emanuel"]
[Result "1/2-1/2"]
[ECO "A46"]
[WhiteElo "1706"]
[BlackElo "1839"]
[Annotator "NA RC"]
[PlyCount "87"]
[EventDate "2021.04.06"]
[EventType "swiss"]
[EventCountry "CRO"]
[SourceTitle "playchess.com"]
[Source "ChessBase"]
[SourceQuality "1"]
[TimeControl "5400+30"]

{[%evp 8,66,0,0,14,32767,0,0,32767,8,33,32767,32767,0,30,21,37,1,32767,7,32767,32767,34,-6,18,0,87,16,67,40,70,74,57,43,45,32,28,32767,32767,14,46,51,47,0,0,0,25,5,22,-89,32767,32767,8,0,76,32,69,35,117,32767,22]} 1. d4 {[%emt 0:00:50]} Nf6 {[%emt 0:00:00]} 2. Nf3 {[%emt 0:00:14]} e6 {[%emt 0:00:06]} 3. c3 {[%emt 0:01:13]} Be7 {[%emt 0:00:47]} 4. e3 {[%emt 0:00:58]} O-O {[%emt 0:00:26]} 5. Bd3 {[%emt 0:00:07]} b6 {[%emt 0:00:55]} 6. O-O {[%emt 0:00:11]} Bb7 {[%emt 0:00:30]} 7. Nbd2 {[%emt 0:00:23]} d6 {[%emt 0:01:07]} 8. Re1 {[%emt 0:00:40]} Nbd7 {[%emt 0:00:31]} 9. Qc2 {[%emt 0:00:42]} Re8 {[%emt 0:01:19]} 10. b3 {[%emt 0:10:38]} Bf8 {[%emt 0:01:37]} 11. Bb2 {[%emt 0:05:28]} e5 {[%emt 0:03:06]} 12. dxe5 {[%emt 0:00:30]} dxe5 {[%emt 0:00:24]} 13. e4 {[%emt 0:01:00]} Nc5 {[%emt 0:01:24]} 14. Bf1 {[%emt 0:00:17]} Bd6 {[%emt 0:05:15]} 15. Rad1 {[%emt 0:00:56]} a5 {[%emt 0:07:22]} 16. a3 {[%emt 0:00:37]} (16. b4 $5 {[%cal Rb4c5]} Ncd7 17. Nc4 $11) 16... Ne6 {[%emt 0:08:26]} (16... Bc6 $11) 17. g3 {[%emt 0:04:37]} (17. Bb5 $16) 17... Nf8 {[%emt 0:01:16]} (17... Bc6 $11) 18. Nc4 {[%emt 0:03:51]} Ng6 {[%emt 0:01:42]} 19. Nxd6 {[%emt 0:06:31]} cxd6 {[%emt 0:00:25]} 20. Bb5 {[%emt 0:00:16]} Rf8 {[%emt 0:01:47]} 21. a4 {[%emt 0:02:11]} Qe7 {[%emt 0:04:13]} 22. Ba3 {[%emt 0:00:18]} Rfd8 {[%emt 0:00:32]} 23. Nd2 {[%emt 0:00:47]} Qe6 {[%emt 0:05:48]} 24. c4 {[%emt 0:02:19]} h5 {[%emt 0:16:44]} 25. Nf1 {[%emt 0:02:33]} Qg4 {[%emt 0:01:02]} 26. Nd2 {[%emt 0:00:54]} ({Not} 26. Rxd6 $2 Rxd6 27. Bxd6 Nxe4 $19) 26... h4 {[%emt 0:09:47]} 27. f3 {[%emt 0:09:31]} Qh5 {[%emt 0:00:36]} 28. Kg2 {[%emt 0:02:56]} (28. Bc1 $11) 28... Bc8 {[%emt 0:04:18]} 29. Rh1 {[%emt 0:02:58]} Qg5 {[%emt 0:03:36]} (29... Nh7 $17) 30. Kf2 {[%emt 0:01:24]} Nh5 {[%emt 0:00:42]} (30... Nh7 $11 {keeps the balance.}) 31. Rdg1 {[%emt 0:00:26]} Ra7 {[%emt 0:03:03]} 32. Bc1 {[%emt 0:05:52]} Qf6 {[%emt 0:00:32]} 33. Bc6 {[%emt 0:01:18]} Rc7 $11 {[%emt 0:01:20]} 34. Bd5 {[%emt 0:03:55]} Ne7 {[%emt 0:00:16]} 35. Qd3 {[%emt 0:01:48]} Be6 {[%emt 0:01:01]} 36. Bxe6 {[%emt 0:07:24]} fxe6 {[%emt 0:00:10]} 37. Nb1 {[%emt 0:01:29]} Nc6 {[%emt 0:00:38]} 38. Nc3 {[%emt 0:01:18]} Nd4 {[%emt 0:01:13]} 39. Ne2 {[%emt 0:01:07]} Rf7 {[%emt 0:00:44]} 40. Nxd4 {[%emt 0:01:52]} exd4 {[%emt 0:00:08]} 41. gxh4 {[%emt 0:03:53]} Qxh4+ {[%emt 0:01:38]} 42. Ke2 {[%emt 0:00:07]} Nf4+ {[%emt 0:00:19]} 43. Bxf4 {[%emt 0:00:15]} Qxf4 {[%emt 0:00:08]} 44. Rg4 {[%emt 0:00:40]} 1/2-1/2

[Event "Croatian junior league 2021"]
[Site "Rabac"]
[Date "2021.04.10"]
[Round "9.19"]
[White "Mijic, Karlo"]
[Black "Poljan, Max"]
[Result "0-1"]
[ECO "B50"]
[WhiteElo "1599"]
[BlackElo "1573"]
[Annotator "NA RC"]
[PlyCount "68"]
[EventDate "2021.04.06"]
[EventType "swiss"]
[EventCountry "CRO"]
[SourceTitle "playchess.com"]
[Source "ChessBase"]
[SourceQuality "1"]
[TimeControl "5400+30"]

1. e4 {[%emt 0:05:48]} c5 {[%emt 0:00:00]} 2. Nf3 {[%emt 0:00:03]} e6 {[%emt 0:00:00]} 3. b3 {[%emt 0:00:03]} d6 {[%emt 0:00:00]} 4. Bb2 {[%emt 0:00:16]} Nc6 {[%emt 0:00:00]} 5. Bb5 {[%emt 0:00:52]} Bd7 {[%emt 0:00:33]} 6. O-O {[%emt 0:03:51]} a6 {[%emt 0:00:22]} 7. Bd3 {[%emt 0:04:39]} b5 {[%emt 0:05:53]} 8. Re1 {[%emt 0:00:48]} Qc7 {[%emt 0:10:34]} 9. Bf1 {[%emt 0:05:54]} Nf6 {[%emt 0:03:08]} 10. g3 {[%emt 0:07:27]} Be7 {[%emt 0:02:34]} 11. Bg2 {[%emt 0:00:08]} O-O {[%emt 0:01:13]} 12. e5 {[%emt 0:00:04]} dxe5 {[%emt 0:02:01]} 13. Nxe5 {[%emt 0:00:08]} Rac8 {[%emt 0:02:41]} 14. Nxd7 {[%emt 0:01:33]} Qxd7 {[%emt 0:00:30]} 15. Nc3 {[%emt 0:04:58]} Rfd8 {[%emt 0:07:06]} 16. d3 {[%emt 0:00:15]} Nd4 {[%emt 0:03:53]} 17. a4 {[%emt 0:02:11]} b4 {[%emt 0:02:08]} 18. Rc1 {[%emt 0:04:49]} bxc3 {[%emt 0:02:40]} 19. Bxc3 {[%emt 0:00:13]} Nd5 {[%emt 0:01:03]} 20. Ba5 {[%emt 0:01:18]} Re8 {[%emt 0:00:21]} 21. Be4 {[%emt 0:00:08]} Bg5 {[%emt 0:01:02]} 22. f4 {[%emt 0:00:14]} Bf6 {[%emt 0:00:10]} 23. Bd2 {[%emt 0:01:53]} Nf5 {[%emt 0:03:38]} 24. Qf3 {[%emt 0:05:03]} Bc3 {[%emt 0:13:19]} 25. Bxc3 {[%emt 0:01:00]} Nxc3 {[%emt 0:00:14]} 26. Bb7 {[%emt 0:00:04]} Rc7 {[%emt 0:00:15]} 27. Bxa6 {[%emt 0:00:04]} Nd4 {[%emt 0:00:34]} 28. Qg2 {[%emt 0:00:16]} Qc6 {[%emt 0:00:27]} 29. Qxc6 {[%emt 0:00:37]} Rxc6 {[%emt 0:00:04]} 30. Bb7 {[%emt 0:00:03]} Rc7 {[%emt 0:00:17]} 31. Be4 {[%emt 0:00:45]} Nde2+ {[%emt 0:00:39]} 32. Kf2 {[%emt 0:00:04]} Nxc1 {[%emt 0:00:14]} 33. Rxc1 {[%emt 0:00:04]} Nxe4+ {[%emt 0:00:05]} 34. dxe4 {[%emt 0:00:03]} Rd8 {[%emt 0:00:04]} 0-1

[Event "Croatian junior league 2021"]
[Site "Rabac"]
[Date "2021.04.10"]
[Round "9.20"]
[White "Hergotic, Mihael"]
[Black "Bedic, Noemi"]
[Result "1-0"]
[ECO "C54"]
[WhiteElo "1476"]
[BlackElo "1587"]
[Annotator "NA RC"]
[PlyCount "127"]
[EventDate "2021.04.06"]
[EventType "swiss"]
[EventCountry "CRO"]
[SourceTitle "playchess.com"]
[Source "ChessBase"]
[SourceQuality "1"]
[TimeControl "5400+30"]

1. e4 {[%emt 0:00:00]} e5 {[%emt 0:05:25]} 2. Nf3 {[%emt 0:00:47]} Nc6 {[%emt 0:00:06]} 3. Bc4 {[%emt 0:00:07]} Bc5 {[%emt 0:00:07]} 4. c3 {[%emt 0:01:12]} Nf6 {[%emt 0:00:33]} 5. d3 {[%emt 0:00:25]} d6 {[%emt 0:00:19]} 6. Bb3 {[%emt 0:00:37]} a6 {[%emt 0:00:45]} 7. Nbd2 {[%emt 0:01:43]} Ba7 {[%emt 0:00:13]} 8. h3 {[%emt 0:00:26]} h6 {[%emt 0:01:30]} 9. Nf1 {[%emt 0:00:21]} Ne7 {[%emt 0:03:36]} 10. g4 {[%emt 0:01:55]} g5 {[%emt 0:01:39]} 11. Ng3 {[%emt 0:00:27]} Ng6 {[%emt 0:05:17]} 12. Nf5 {[%emt 0:05:42]} Bxf5 {[%emt 0:03:39]} 13. gxf5 {[%emt 0:01:11]} Nf4 {[%emt 0:01:53]} 14. Bxf4 {[%emt 0:00:29]} gxf4 {[%emt 0:00:07]} 15. Rg1 {[%emt 0:00:33]} Rg8 {[%emt 0:01:49]} 16. Rxg8+ {[%emt 0:05:53]} Nxg8 {[%emt 0:00:10]} 17. Nh2 {[%emt 0:02:41]} Qh4 {[%emt 0:13:57]} 18. Qf3 {[%emt 0:02:48]} Nf6 {[%emt 0:00:24]} 19. Ke2 {[%emt 0:02:51]} Nh7 {[%emt 0:03:25]} 20. Rg1 {[%emt 0:14:28]} Ng5 {[%emt 0:01:47]} 21. Qg2 {[%emt 0:01:16]} Qxf2+ {[%emt 0:12:05]} 22. Qxf2 {[%emt 0:00:16]} Bxf2 {[%emt 0:00:06]} 23. Kxf2 {[%emt 0:01:46]} Nxh3+ {[%emt 0:00:43]} 24. Kg2 {[%emt 0:00:01]} Nxg1 {[%emt 0:00:11]} 25. Kxg1 {[%emt 0:00:01]} Ke7 {[%emt 0:00:20]} 26. Kf2 {[%emt 0:00:53]} Kf6 {[%emt 0:04:55]} 27. d4 {[%emt 0:01:36]} h5 {[%emt 0:03:41]} 28. Nf3 {[%emt 0:00:51]} Rh8 {[%emt 0:01:50]} 29. Nh4 {[%emt 0:00:59]} Rh7 {[%emt 0:00:54]} 30. Bd1 {[%emt 0:02:13]} c6 {[%emt 0:06:23]} 31. Bf3 {[%emt 0:00:41]} Kg5 {[%emt 0:00:49]} 32. Ng2 {[%emt 0:01:04]} h4 {[%emt 0:00:18]} 33. Kg1 {[%emt 0:00:52]} h3 {[%emt 0:01:40]} 34. Ne1 {[%emt 0:00:03]} h2+ {[%emt 0:02:13]} 35. Kh1 {[%emt 0:00:01]} f6 {[%emt 0:05:36]} 36. Bd1 {[%emt 0:01:16]} d5 {[%emt 0:03:11]} 37. Nf3+ {[%emt 0:03:48]} Kg4 {[%emt 0:01:23]} 38. exd5 {[%emt 0:03:51]} e4 {[%emt 0:02:49]} 39. Nd2+ {[%emt 0:00:50]} Kxf5 {[%emt 0:02:55]} 40. dxc6 {[%emt 0:00:02]} bxc6 {[%emt 0:04:43]} 41. Bc2 {[%emt 0:00:01]} Kg4 {[%emt 0:01:07]} 42. Nxe4 {[%emt 0:00:49]} Re7 {[%emt 0:02:31]} 43. Nxf6+ {[%emt 0:05:19]} Kg5 {[%emt 0:02:45]} 44. Ne4+ {[%emt 0:00:19]} Kg4 {[%emt 0:00:48]} 45. Kxh2 {[%emt 0:00:41]} Kf3 {[%emt 0:00:48]} 46. Kg1 {[%emt 0:01:45]} Rg7+ {[%emt 0:00:55]} 47. Kf1 {[%emt 0:00:03]} Rb7 {[%emt 0:00:28]} 48. Nd2+ {[%emt 0:00:01]} Kg3 {[%emt 0:00:19]} 49. b3 {[%emt 0:00:19]} Rb8 {[%emt 0:00:34]} 50. Be4 {[%emt 0:00:12]} Rc8 {[%emt 0:00:16]} 51. Ke2 {[%emt 0:00:16]} Re8 {[%emt 0:00:22]} 52. Kd3 {[%emt 0:00:39]} Re6 {[%emt 0:00:25]} 53. a4 {[%emt 0:01:10]} Kf2 {[%emt 0:00:32]} 54. Nc4 {[%emt 0:04:01]} Rh6 {[%emt 0:00:35]} 55. Ne5 {[%emt 0:01:28]} Rh3+ {[%emt 0:00:09]} 56. Kc4 {[%emt 0:00:20]} Ke2 {[%emt 0:01:16]} 57. Bxc6 {[%emt 0:01:00]} Kd2 {[%emt 0:00:16]} 58. Nf3+ {[%emt 0:00:28]} Ke3 {[%emt 0:00:24]} 59. Ne5 {[%emt 0:07:20]} Kd2 {[%emt 0:00:13]} 60. Bf3 {[%emt 0:01:10]} Ke3 {[%emt 0:00:23]} 61. Bg4 {[%emt 0:00:21]} Rh1 {[%emt 0:00:44]} 62. Kc5 {[%emt 0:01:26]} Rh8 {[%emt 0:01:06]} 63. b4 {[%emt 0:00:47]} Rc8+ {[%emt 0:00:06]} 64. Bxc8 {[%emt 0:00:07]} 1-0

[Event "Croatian junior league 2021"]
[Site "Rabac"]
[Date "2021.04.10"]
[Round "9.22"]
[White "Mandaric, Fran"]
[Black "Stjepic, Borna"]
[Result "1/2-1/2"]
[ECO "B50"]
[WhiteElo "1684"]
[BlackElo "1825"]
[Annotator "NA RC"]
[PlyCount "62"]
[EventDate "2021.04.06"]
[EventType "swiss"]
[EventCountry "CRO"]
[SourceTitle "playchess.com"]
[Source "ChessBase"]
[SourceQuality "1"]
[TimeControl "5400+30"]

{[%evp 13,54,20,32767,32767,32767,10,0,10,32,30,32767,32767,32767,32767,32767,32767,41,32767,27,18,50,-8,77,61,125,16,79,72,32767,32767,32767,32767,32767,11,10,15,6,6,10,0,53,32767,-8]} 1. e4 {[%emt 0:00:00]} c5 {[%emt 0:00:00]} 2. Nf3 {[%emt 0:00:00]} d6 {[%emt 0:00:00]} 3. c3 {[%emt 0:00:00]} Nf6 {[%emt 0:00:01]} 4. Bd3 {[%emt 0:00:00]} g6 {[%emt 0:01:45]} 5. Bc2 {[%emt 0:00:06]} Bg7 {[%emt 0:00:06]} 6. O-O {[%emt 0:00:13]} O-O {[%emt 0:00:11]} 7. d4 {[%emt 0:01:03]} Bg4 {[%emt 0:03:25]} 8. Nbd2 {[%emt 0:05:29]} cxd4 {[%emt 0:04:53]} 9. cxd4 {[%emt 0:00:41]} Nc6 {[%emt 0:00:09]} 10. h3 {[%emt 0:00:38]} Bxf3 {[%emt 0:01:33]} 11. Nxf3 {[%emt 0:00:07]} Rc8 {[%emt 0:02:23]} 12. Re1 {[%emt 0:02:18]} Nd7 {[%emt 0:02:38]} 13. Be3 {[%emt 0:04:03]} a5 {[%emt 0:03:54]} 14. a3 {[%emt 0:05:10]} e5 {[%emt 0:04:18]} 15. Bb3 {[%emt 0:04:28]} exd4 {[%emt 0:06:02]} 16. Nxd4 {[%emt 0:05:57]} Nc5 {[%emt 0:13:22]} 17. Nxc6 {[%emt 0:07:28]} Rxc6 {[%emt 0:02:00]} (17... bxc6 $11 {remains equal.} 18. Bxc5 dxc5) 18. Bd5 {[%emt 0:01:05]} Rb6 {[%emt 0:00:45]} (18... Rc7 $14) 19. Bd4 {[%emt 0:00:21]} ({White should play} 19. e5 $16) 19... Re8 {[%emt 0:02:45]} (19... Bxd4 $11 20. Qxd4 Ne6 21. Bxe6 fxe6) 20. Bxg7 {[%emt 0:08:27]} Kxg7 {[%emt 0:00:01]} 21. Qd4+ {[%emt 0:00:14]} Qf6 {[%emt 0:01:15]} 22. Qxf6+ {[%emt 0:03:02]} Kxf6 {[%emt 0:00:03]} 23. Re3 {[%emt 0:07:45]} Kg7 {[%emt 0:04:23]} 24. b3 {[%emt 0:03:04]} f5 {[%emt 0:05:35]} 25. f3 {[%emt 0:06:21]} fxe4 {[%emt 0:02:59]} 26. fxe4 {[%emt 0:00:18]} Rf8 {[%emt 0:03:40]} 27. Rf1 {[%emt 0:02:21]} Rxf1+ $11 {[%emt 0:03:00]} 28. Kxf1 {[%emt 0:00:07]} Kf6 {[%emt 0:00:27]} 29. Ke2 {[%emt 0:00:28]} Ke5 {[%emt 0:00:40]} 30. g3 {[%emt 0:04:11]} Ne6 {[%emt 0:02:43]} 31. Bxe6 {[%emt 0:02:59]} Kxe6 {[%emt 0:00:02]} 1/2-1/2